Cogmind - Beta 16 @@@ ROGUE MODE // 2025.10.26 @ 22:49:16 Player: Err. String Expected Got Nil Result: Self-destructed Performance ------------- Evolutions (1) 500 Regions Visited (4) 800 Robots Destroyed (92) 460 Value Destroyed (1896) 1896 Prototype IDs (4) 80 Alien Tech Used (0) 0 Bonus (4) 4 TOTAL SCORE: 3740 Bonus ------- High Alert Combat Kills 4 Cogmind --------- Core Integrity 195/400 Matter 283/300 Energy 265/265 System Corruption 4% Temperature Cool (0) Movement Treading (200) Ox1 Location -9/Storage Parts ------- > --- POWER (1) -------- Reinforced Ion Engine > --- PROPULSION (3) --- Improved Treads > --- UTILITY (3) ------ Improved Heat Sink Large Storage Unit Improved Targeting Computer > --- WEAPON (2) ------- Beam Rifle Improved Assault Rifle > --- INVENTORY (15) --- Reinforced Ion Engine Reinforced Ion Engine Aluminum Leg Aluminum Leg Aluminum Leg Improved Aluminum Leg Machine Analyzer Seismic Detector Hacking Suite Improved EM Shotgun Autogun Improved Light Cannon Rocket Launcher Rocket Launcher Mining Laser Peak State ------------ > --- POWER ------------ Reinforced Ion Engine > --- PROPULSION ------- Improved Treads Improved Treads Improved Treads > --- UTILITY ---------- Improved Heat Sink Large Storage Unit Improved Targeting Computer > --- WEAPON ----------- Improved EM Shotgun Improved Assault Rifle > --- INVENTORY -------- Reinforced Ion Engine Reinforced Ion Engine Aluminum Leg Aluminum Leg Aluminum Leg Improved Aluminum Leg Machine Analyzer Seismic Detector Hacking Suite Beam Rifle Autogun Improved Light Cannon Rocket Launcher Rocket Launcher Mining Laser [Rating: 22] Favorites ----------- Power Reinforced Ion Engine Engine Reinforced Ion Engine Propulsion Improved Treads Treads Improved Treads Leg Aluminum Leg Utility Large Storage Unit Device Seismic Detector Storage Large Storage Unit Processor Improved Targeting Computer Protection Light Armor Plating Weapon Medium Laser Energy Gun Medium Laser Ballistic Gun Assault Rifle Ballistic Cannon Light Cannon Special Weapon Mining Laser Build | -11 -10 -10 -9 -9 ------- Run | Yrd Mat Min Mat Sto Slots Evolved 2 | . . . 2 . Power . | . . . . . Propulsion 1 | . . . 1 . Utility 1 | . . . 1 . Weapon . | . . . . . Parts Attached 41 | 7 10 1 20 3 Power 6 | 1 1 1 3 . Engine 6 | 1 1 1 3 . Core . | . . . . . Reactor . | . . . . . Propulsion 13 | 2 3 . 8 . Treads 4 | . . . 4 . Leg 9 | 2 3 . 4 . Wheel . | . . . . . Hover . | . . . . . Flight . | . . . . . Utility 10 | 2 4 . 4 . Device 3 | 1 1 . 1 . Storage 3 | 1 2 . . . Processor 1 | . . . 1 . Hackware . | . . . . . Protection 3 | . 1 . 2 . Artifact . | . . . . . Weapon 12 | 2 2 . 5 3 Energy Gun 4 | 1 . . 2 1 Energy Cannon . | . . . . . Ballistic Gun 6 | 1 . . 3 2 Ballistic Cannon 1 | . 1 . . . Launcher . | . . . . . Special Weapon 1 | . 1 . . . Impact Weapon . | . . . . . Slashing Weapon . | . . . . . Piercing Weapon . | . . . . . Special Melee Weapon . | . . . . . Unidentified Prototypes 4 | . . . 3 1 Parts Lost 9 | . 2 2 2 3 Power 2 | . 1 1 . . Propulsion 2 | . . . . 2 Utility 2 | . 1 . 1 . Weapon 3 | . . 1 1 1 Highest Loss Streak 2 | . 1 2 1 2 To Critical Strikes . | . . . . . Average Backups 12 | 1 6 12 14 15 Power 1 | . 1 . 2 2 Propulsion 3 | . 1 3 4 4 Utility 3 | . 1 4 3 3 Weapon 3 | . 2 2 4 6 Tool/Special . | . . . . . Unused Backups 12 | . . . 1 11 Power 2 | . . . . 2 Propulsion 3 | . . . . 3 Utility 3 | . . . 1 2 Weapon 4 | . . . . 4 Tool/Special . | . . . . . Average Slot Usage (%) 99 | . 99 100 99 97 Engine 12 | . 14 14 11 11 Treads 18 | . . . 30 31 Leg 12 | . 28 28 2 . Device 11 | . 11 14 11 11 Storage 12 | . 14 14 11 11 Processor 3 | . . . 3 11 Protection 3 | . 2 . 7 . Energy Gun 10 | . 14 14 8 10 Ballistic Gun 11 | . 10 8 13 10 Ballistic Cannon 1 | . 3 5 . . Peak Build Rating 22 | 7 8 8 21 22 Average Rating 13 | 5 7 7 17 19 On Entrance 8 | . 7 8 8 20 Avg Prop Armor Cover (%) . | . . . . . Naked Turns . | . . . . . Heaviest Build 40 | 15 29 29 40 37 Greatest Support 69 | 20 20 20 69 69 Greatest Overweight (x) 3 | 3 1 1 2 . Average Overweight (x) . | . . 1 . . Largest Inventory Capacity 15 | 8 15 15 15 15 Average Capacity 13 | 7 9 15 15 15 Most Carried 15 | 3 11 13 15 15 Average Carried 12 | 1 6 12 14 14 Final Capacity 15 | 8 15 15 15 15 Final Carried 15 | 3 11 12 15 15 Class Distribution -------------------- 66% | Mutant 20% | Scavenger-Mutant 13% | Scientist-Mutant Dominant Class ---------------- Mutant | -10/Materials Scavenger-Mutant | -10/Mines Mutant | -9/Materials Scientist-Mutant | -9/Storage Resources | -11 -10 -10 -9 -9 ----------- Run | Yrd Mat Min Mat Sto Matter Collected 1707 | 236 381 107 816 167 Remotely . | . . . . . Salvage Created 3221 | 103 588 213 1696 621 Parts 177 | 8 46 13 94 16 Haulers Intercepted 6 | . 2 . 3 1 Recyclers Shooed 9 | . 3 3 2 1 Parts Field Recycled . | . . . . . Retrieved Matter . | . . . . . Parts Self-Destructed . | . . . . . Prevented . | . . . . . Parts Restored . | . . . . . Kills | -11 -10 -10 -9 -9 ------- Run | Yrd Mat Min Mat Sto Combat Hostiles Destroyed 65 | . 14 8 37 6 Guns 60 | . 11 6 37 6 Cannons 4 | . 3 1 . . Classes Destroyed 9 | 2 4 . 2 1 Tunneler 3 | 2 1 . . . Hauler 6 | . 2 . 3 1 Recycler 9 | 1 2 1 2 3 Mechanic 2 | . . . 1 1 Watcher 7 | . 2 . 4 1 Swarmer 30 | . 9 6 15 . Grunt 22 | . 5 2 12 3 Duelist 1 | . . . . 1 Sentry 12 | . . . 10 2 Best Kill Streak 6 | 3 6 3 6 2 Combat Bots Only 6 | . 3 3 6 2 Max Kills in Single Turn 2 | 2 1 2 2 1 Gunslinging 1 | . . 1 1 . Exploded . | . . . . . Melee . | . . . . . Uniques/NPCs Destroyed . | . . . . . Combat | -11 -10 -10 -9 -9 -------- Run | Yrd Mat Min Mat Sto Hostile Shots Fired 259 | . 63 27 143 26 Missed 71 | . 15 7 42 7 Hits 188 | . 48 20 101 19 Melee 5 | . . . . 5 Projectile 183 | . 48 20 101 14 Critical Strikes 2 | . . 1 1 . Damage Taken 2118 | . 448 202 1134 334 Core 274 | . 52 17 171 34 Absorbed by Shields . | . . . . . Regen/Repaired (Parts) 203 | . . . . 203 Core Remaining (%) 86 | 100 . 72 . . Volleys Fired 231 | 5 55 22 108 41 Largest 2 | 2 2 2 2 2 Hottest 100 | 70 100 80 100 79 Shots Fired 438 | 10 108 44 207 69 Gun 408 | 10 95 36 198 69 Cannon 20 | . 12 8 . . Launcher . | . . . . . Special 10 | . 1 . 9 . Kinetic 227 | 5 54 22 118 28 Thermal 203 | 5 54 22 89 33 Explosive . | . . . . . Electromagnetic 8 | . . . . 8 Robot Hit Streak 27 | 5 10 16 18 27 Robot Miss Streak 6 | 2 6 3 4 1 Penetration Max . | . . . . . Secondary Targets 8 | . . 2 4 2 Max Gunslinging Chain 1 | . . 1 1 1 Shots Hit Robots 286 | 6 61 34 132 53 Core Hits 128 | 3 30 11 66 18 Critical Kills . | . . . . . Critical Parts Destroyed 1 | . . 1 . . Critical Strikes 21 | . 3 5 13 . Burn 16 | . 1 2 13 . Destroy 1 | . . 1 . . Blast 4 | . 2 2 . . Melee Attacks . | . . . . . Impact . | . . . . . Slashing . | . . . . . Piercing . | . . . . . Sneak Attacks . | . . . . . Combat Hostiles . | . . . . . Follow-up Attacks . | . . . . . Damage Inflicted 4120 | 105 874 473 1836 832 Guns 3764 | 105 678 322 1835 824 Cannons 332 | . 183 149 . . Explosions . | . . . . . Melee . | . . . . . Ramming 24 | . 13 2 1 8 Kinetic 2196 | 55 526 255 990 370 Thermal 1900 | 50 335 216 845 454 Explosive . | . . . . . Electromagnetic . | . . . . . Impact . | . . . . . Slashing . | . . . . . Piercing . | . . . . . Highest Corruption 4 | . . . 4 4 Average Corruption 4 | . . . 4 4 Corruption Purged . | . . . . . Corruption Blocked . | . . . . . Effects 40 | . . . 28 12 Message Errors 10 | . . . 7 3 Matter Fused 10 | . . . 8 2 Heat Flow Errors 1 | . . . . 1 Energy Discharges 6 | . . . 3 3 Parts Fused 1 | . . . 1 . Data Loss (minor) 5 | . . . 4 1 Data Loss (major) 2 | . . . 1 1 Misfires 3 | . . . 2 1 Weapon Failures 2 | . . . 2 . Overload Shots . | . . . . . Overflow Damage 3 | . . 3 . . Projectiles 3 | . . 3 . . Explosions . | . . . . . Melee . | . . . . . Knockbacks 8 | . 4 4 . . Impact . | . . . . . Kinetic 8 | . 4 4 . . Secondary . | . . . . . Self-Inflicted Damage . | . . . . . Shots . | . . . . . Rammed 2 | . . . 1 1 Targets Rammed 5 | . 1 2 1 1 Kicked 3 | . 1 2 . . Crushed . | . . . . . Highest Temperature 183 | 27 123 162 183 164 Average Temperature 31 | 12 35 43 25 36 Received Heat Transfer 507 | . 96 60 291 60 Siege Activations . | . . . . . Martial Activations . | . . . . . Shielding Activations . | . . . . . Robots Disrupted . | . . . . . Combat Hostiles . | . . . . . Robots Corrupted . | . . . . . Combat Hostiles . | . . . . . Parts Fried . | . . . . . Impact Corruptions . | . . . . . Robots Melted 2 | . . 1 1 . Combat Hostiles 1 | . . 1 . . Parts Melted 21 | . . 1 14 6 Heat Transferred 6105 | 148 1036 777 3034 1110 Parts Sabotaged . | . . . . . Parts Stolen . | . . . . . Parts Stripped . | . . . . . Power Chain Reactions . | . . . . . Alert | -11 -10 -10 -9 -9 ------- Run | Yrd Mat Min Mat Sto Maximum Alert Level 2 | . . . 2 . Low Security (%) 88 | 100 100 100 73 100 Level 1 9 | . . . 21 . Level 2 2 | . . . 4 . Level 3 . | . . . . . Level 4 . | . . . . . Level 5 . | . . . . . High Security . | . . . . . Max Security . | . . . . . Peak Influence 432 | 15 113 70 432 107 Initial 107 | . . 13 18 107 Average 77 | 2 65 13 125 43 Influence Increases 1915 | 15 400 195 1119 186 Destroy 0b10 Robot/C 1300 | . 280 160 740 120 Destroy 0b10 Robot/NC 135 | 15 35 5 50 30 Destroy Leader 296 | . 48 30 184 34 Successful Hack 88 | . 19 . 69 . Disable Machine 15 | . . . 15 . Destroy Structure 21 | . 3 . 16 2 Lose Combat Pursuer 60 | . 15 . 45 . Influence Decreases 1866 | 15 366 181 911 393 Entered New Map 200 | . . 21 30 149 Time Decay 1276 | 15 336 150 561 214 Lost Part 80 | . 20 10 20 30 Lost Ally 10 | . 10 . . . Purge Threat 300 | . . . 300 . Squads Dispatched 5 | . . . 4 1 Investigation 2 | . . . 2 . Extermination . | . . . . . Reinforcement 3 | . . . 2 1 Assault . | . . . . . Garrison . | . . . . . Intercept . | . . . . . Searches Triggered . | . . . . . Construction Impeded 1 | . . . 1 . Haulers Reinforced . | . . . . . Active Scanning Responses . | . . . . . Cargo Convoy Interrupts . | . . . . . Stealth | -11 -10 -10 -9 -9 --------- Run | Yrd Mat Min Mat Sto Distress Signals 5 | . 1 . 3 1 Communications Jammed . | . . . . . Distress Signals . | . . . . . Times Spotted 87 | . 21 8 50 8 Peak Tracking Total 5 | . 3 3 5 4 Tactical Retreats 3 | . 1 . 2 . Traps | -11 -10 -10 -9 -9 ------- Run | Yrd Mat Min Mat Sto Traps Triggered 2 | . . . 2 . Indirectly . | . . . . . Trap Hack Attempts . | . . . . . Triggered . | . . . . . Disarmed . | . . . . . Reprogrammed . | . . . . . Reused . | . . . . . Traps Extracted . | . . . . . Installed . | . . . . . Triggered . | . . . . . Machines | -11 -10 -10 -9 -9 ---------- Run | Yrd Mat Min Mat Sto Machines Disabled 1 | . . . 1 . Max in Single Turn 1 | . . . 1 . Machines Repaired . | . . . . . Machines Dismantled . | . . . . . Machines Sabotaged . | . . . . . Overloaded Fab Kills . | . . . . . Hacking | -11 -10 -10 -9 -9 --------- Run | Yrd Mat Min Mat Sto Machines Accessed 23 | . 7 . 13 3 Terminals 19 | . 7 . 10 2 Fabricators . | . . . . . Repair Stations 1 | . . . . 1 Recycling Units 1 | . . . 1 . Scanalyzers 2 | . . . 2 . Garrison Access . | . . . . . Total Hacks 80 | . 26 . 44 10 Successful 54 | . 16 . 34 4 Failed 26 | . 10 . 10 6 Catastrophic 3 | . . . 1 2 Database Lockouts . | . . . . . Manual 41 | . 20 . 21 . Terminals 63 | . 26 . 32 5 Fabricators . | . . . . . Repair Stations 5 | . . . . 5 Recycling Units 2 | . . . 2 . Scanalyzers 10 | . . . 10 . Garrison Access . | . . . . . Terminal Hacks 20 | . 7 . 13 . Robot Analysis 6 | . 3 . 3 . Terminal Index 2 | . 1 . 1 . Scanalyzer Index 1 | . . . 1 . Alert Level 3 | . 1 . 2 . Unreport Threat 2 | . . . 2 . Locate Traps 1 | . 1 . . . Transport Status 1 | . . . 1 . Hauler Manifests 1 | . . . 1 . Registered Components 1 | . . . 1 . Zone Layout 2 | . 1 . 1 . Fabricator Hacks . | . . . . . Repair Station Hacks 4 | . . . . 4 Scan Component 2 | . . . . 2 Repair 2 | . . . . 2 Recycling Unit Hacks . | . . . . . Scanalyzer 9 | . . . 9 . Retrieve Study 9 | . . . 9 . Garrison Access Hacks . | . . . . . Unauthorized Hacks 21 | . 9 . 12 . Terminals 21 | . 9 . 12 . Track 1 | . . . 1 . Assimilate 2 | . 1 . 1 . Botnet 5 | . 2 . 3 . Disrupt 1 | . . . 1 . Operators 2 | . 1 . 1 . Skim 10 | . 5 . 5 . Fabricators . | . . . . . Repair Stations . | . . . . . Recycling Units . | . . . . . Scanalyzers . | . . . . . Garrison Access . | . . . . . Data Cores Recovered . | . . . . . Used . | . . . . . Hacking Detections 22 | . 6 . 13 3 Full Trace Events . | . . . . . Feedback Events . | . . . . . Feedback Blocked . | . . . . . Robot Schematics Acquired . | . . . . . Robots Built . | . . . . . Authchips . | . . . . . Time . | . . . . . Total Robot Build Rating . | . . . . . Part Schematics Acquired . | . . . . . Parts Built . | . . . . . Authchips . | . . . . . Time . | . . . . . Total Part Build Rating . | . . . . . Part Studies Acquired 9 | . . . 9 . Parts Repaired 2 | . . . . 2 Time 64 | . . . . 64 Parts Recycled . | . . . . . Recycled Matter . | . . . . . Retrieved Matter . | . . . . . Retrieved Components . | . . . . . Parts Scanalyzed . | . . . . . Part Schematics Acquired . | . . . . . Parts Damaged . | . . . . . Bothacking | -11 -10 -10 -9 -9 ------------ Run | Yrd Mat Min Mat Sto Used RIF Installer . | . . . . . Robots Hacked . | . . . . . Non-combat . | . . . . . Combat . | . . . . . Robot Hacks Applied . | . . . . . Relay Couplers Released . | . . . . . Fabnet Peak Effective % . | . . . . . Robots Rewired . | . . . . . Allies Hacked . | . . . . . Hacks Repelled . | . . . . . Allies | -11 -10 -10 -9 -9 -------- Run | Yrd Mat Min Mat Sto Total Allies 1 | . 1 . . . Largest Group 1 | . 1 . . . Highest-Rated Group 10 | . 10 . . . Highest-Rated Ally 10 | . 10 . . . Total Orders . | . . . . . Ally Attacks . | . . . . . Total Damage . | . . . . . Kills . | . . . . . Allies Corrupted . | . . . . . Allies Melted . | . . . . . Intel | -11 -10 -10 -9 -9 ------- Run | Yrd Mat Min Mat Sto Active Infowar (turns) 2190 | 17 670 800 703 . Seismic 2190 | 17 670 800 703 . Robot Analysis Total 6 | . 3 . 3 . Derelict Logs Recovered 1 | . . 1 . . Drone Launches . | . . . . . Drone Recoveries . | . . . . . Exploration | -11 -10 -10 -9 -9 ------------- Run | Yrd Mat Min Mat Sto Turns Passed 4019 | 82 814 800 1800 523 Spaces Moved 1854 | 43 441 381 790 199 Core 8 | 8 . . . . Treads 962 | . . . 763 199 Legs 884 | 35 441 381 27 . Wheels . | . . . . . Hover . | . . . . . Flight . | . . . . . Fastest Speed 50 | 50 120 190 120 160 Average Speed 157 | 126 128 190 158 160 Slowest Speed 260 | 200 190 190 260 160 Overloaded Moves . | . . . . . Propulsion Burnouts . | . . . . . Robots Hopped . | . . . . . Potential Cave-ins . | . . . . . Cave-ins Triggered . | . . . . . Exploration Rate (%) 43 | 4 60 59 71 22 Regions Visited 4 Branch Regions 2 Pre-discovered Areas 3 | . 1 1 1 . Known Exits Taken 1 | . . . 1 . Unknown Exits Taken 3 | 1 1 1 . . Scrap Searched 1 | . . 1 . . Spaces Dug 9 | . 1 . 8 . Terrain Destroyed 10 | . 1 . 9 . Melee . | . . . . . Projectile 10 | . 1 . 9 . AOE . | . . . . . Terrain Rammed . | . . . . . Walls Destroyed . | . . . . . Machines Disabled . | . . . . . Actions | -11 -10 -10 -9 -9 --------- Run | Yrd Mat Min Mat Sto Total 2504 | 57 571 412 1127 337 Wait 278 | . 45 3 149 81 Move 1850 | 42 440 380 789 199 Hop . | . . . . . Pick Up 30 | 3 8 3 14 2 Fast Attach 19 | 7 . . 8 4 Attach 12 | . 2 2 7 1 Detach 5 | . . . 4 1 Swap 48 | . 17 . 28 3 Drop 26 | . 3 . 19 4 Fire 231 | 5 55 22 108 41 Melee . | . . . . . Ram . | . . . . . Kick 3 | . 1 2 . . Crush 2 | . . . 1 1 Escape Stasis . | . . . . . Rewire . | . . . . . Trap . | . . . . . Miscellaneous . | . . . . . Route ------- -11/Scrapyard -10/Materials (discovered 4 exits: *Mat x2 / [*Min x2]) -10/Mines (discovered 3 exits: *Mat / [*Exi] / [*Sub]) -9/Materials (discovered 4 exits: *Mat x2 / *Min / *Sto) -9/Storage (discovered 1 exit: Mat) History --------- Turn | Location | Event 19 | -11/Scrapyard | Discovered new exit (range 16) 83 | -11/Scrapyard | Entered Materials 303 | -10/Materials | Discovered new exit (range 7) 315 | -10/Materials | Build established: Mutant 364 | -10/Materials | Discovered new exit (range 13) 398 | -10/Materials | Discovered new exit (range 16) 514 | -10/Materials | Learned Storage security intel 544 | -10/Materials | Loaded intel: 27 trap records 560 | -10/Materials | Discovered new exit (range 16) 565 | -10/Materials | Learned 4 Recycling zone layouts 591 | -10/Materials | Learned location of Subcaves (-10) 897 | -10/Materials | Entered Mines 981 | -10/Mines | Deemed a non-threat by the Exiles lab entrance 983 | -10/Mines | Discovered new exit (range 5) 1075 | -10/Mines | Learned Materials emergency access door positions 1161 | -10/Mines | Learned location of Storage (-9) 1483 | -10/Mines | Build established: Scavenger-Mutant 1645 | -10/Mines | Discovered new exit (range 6) 1663 | -10/Mines | Discovered new exit (range 13) 1697 | -10/Mines | Entered Materials 1697 | -9/Materials | Evolved 2 slots: Propulsion x1, Utility x1 1698 | -9/Materials | Identified exit to Mines 1698 | -9/Materials | Identified exit to Storage 2236 | -9/Materials | Learned Storage terminal intel 2354 | -9/Materials | Learned Storage trap positions 2398 | -9/Materials | Learned location of 1 exit from Recycling 2434 | -9/Materials | Learned Materials emergency access door positions 2458 | -9/Materials | Learned location of Zion (-7) 2501 | -9/Materials | Loaded intel: 12 terminal locations 2586 | -9/Materials | Learned Storage trap positions 2653 | -9/Materials | Discovered new exit (range 3) 2749 | -9/Materials | Build established: Mutant 3444 | -9/Materials | Discovered new exit (range 10) 3497 | -9/Materials | Entered Storage 3498 | -9/Storage | Identified exit to Materials 3499 | -9/Storage | Loaded intel: 20 trap records 3501 | -9/Storage | Loaded intel: 17 terminal locations 3584 | -9/Storage | Build established: Scientist-Mutant 3692 | -9/Storage | Repaired Imp. Treads+ 3726 | -9/Storage | Repaired Beam Rifle+ 4013 | -9/Storage | Core integrity fell below 50% 4020 | -9/Storage | Self-destructed Last Messages --------------- SECURING TERMINAL." 03993_ G-34 Mercenary destroyed. 03993_ Switching to secondary target: L-31 Rogue. 03995_ System corrupted: Energy discharge (-71). 03995_ K-01 Serf collects debris. 03997_ ALERT: Hostiles spotted, dispatching reinforcements to Terminal S015. 03999_ K-01 Serf collects debris. 04008_ Imp. Treads+ destroyed. 04014_ Katana melted. 04014_ L-31 Rogue destroyed. 04014_ Switching to secondary target: G-34 Mercenary. 04014_ R-06 Scavenger collects Aluminum Leg+. 04016_ Imp. Treads+ destroyed. 04016_ K-01 Serf collects debris. 04017_ System corrupted: Component data lost. 04017_ G-34 Mercenary destroyed. 04018_ R-06 Scavenger collects Aluminum Leg+. Map ----- +----------------------------------------------------+ | | | | | | | | | ?????????????????????????????????????????????????? | | ?????????????????????????????????????????????????? | | ??????????????""?????????????????????????????????? | | ??????????????""?????????????????????????????????? | | ??????????????"T?????????????????????????????????? | | ??????????????""?????????????????????????????????? | | ??????????????""?????????????????????????????????? | | ?????????????????????????????????????????????????? | | ?????????????????????????????????????????????????? | | ?????????????????????????????????????????????????? | | ?????????????????????????????????????????????????? | | ????????????????????????##+####??????????????????? | | ????????????T??????????? ??????????????????? | | ???????????????????????? ???????????????????? | | ???????????????????????? ????????????????????? | | ???????????????##+#######r #????????????????????? | | ???????????????# # k #????????????????????? | | ???????????????# """ # #????????????????????? | | ???????????????# """ # #????????????????????? | | ???????????????# """ =# #????????????????????? | | ########???????# %+% ###"##???????????????? | | #???????# """"" #@ + T#???????????????? | | # ######### """"" # # ##???????????????? | | # """%+* + """"" # k #????????????????????? | | # """ # #### # #????????????????????? | | # """ # #??########## #????????????????????? | | # # #???????????# #????????????????????? | | ######## ###???????????# #????????????????????? | | ??######% ###???????????# ????????????????????? | | ??# #T#???????????" ????????????????????? | | ??# + "???????????T ""???????????????????? | | ??# ###???????????" ""???????????????????? | | ??# ##?????????????? "????????????????????? | | ??# #??????????????? ????"???????????????? | | ??# #??????????????? ????T???????????????? | | ??# #??????????????? "????"???????????????? | | ??# #??????????????? ?????????????????????? | | ??#]#### #????????????????????????^??????????????? | | ??#*####+###??????????????????????^??????????????? | | ??# # % #???????T??????????????^??????????????? | | ??#%# """ #????????????????T?????^^??????^^?????? | | ??#%# R" #???????????????????????^??????^??????? | | ??#%+ """ #??????????????????????????????^??????? | | ??#[# #?????????????????????????????????????? | | ??#=# [ #??????????????????""??????????^??????? | | ??#%## #####??????????????????"T?????????^???????? | +----------------------------------------------------+ Best States ------------- Heat Dissipation 42 Energy Generation 14 Energy Capacity 265 Matter Stores 300 Matter Capacity 300 Sight Range 16 Terrain Scan Density 10 Armor Coverage 150 Evasion (%) 55 Targeting Accuracy 6 Recoil Reduction 3 Item Schematics ----------------- None Robot Schematics ------------------ None Fabricated ------------ Nothing Repaired ---------- Imp. Treads | 1% | -9/Storage Beam Rifle | 33% | -9/Storage Studied --------- Beam Rifle | -9/Materials | Hacked Autogun | -9/Materials | Hacked Imp. Light Cannon | -9/Materials | Hacked Rocket Launcher | -9/Materials | Hacked Imp. Treads | -9/Materials | Hacked Imp. Aluminum Leg | -9/Materials | Hacked Aluminum Leg | -9/Materials | Hacked Rnf. Ion Engine | -9/Materials | Hacked Mining Laser | -9/Materials | Hacked Alien Tech Used ----------------- None Achievements -------------- DATA ERROR: Steam Global Achievement% Deductive Reasoning For Emergencies Only I Have A Map? Item+ Organ Harvest There's More Where That Came From Challenges ------------ None Game ------ Seed InsulatedDirtyHammerchucker Manual? 0 Play Time 00:43:48 Cumulative 149.0 hours Start 2025.10.26 @ 22:03:53 End 2025.10.26 @ 22:49:16 Sessions 1 Manual Loads 0 Difficulty Rogue Special Mode None Game No. 105 Rogue 105 Adventurer 0 Explorer 0 Win Type - Total 4 Types 3/0/1/0/0/0/0/0/0/0 Lore% 55 Gallery% 50 Achievement% 29 Wizard Run 0 Options --------- Layout 2 ASCII 0 Keyboard 1 Movement Numpad Keybinds 0 Fullscreen 2 Font 32/SmallcapsGlow Map View 50x44 Zoom Use 0% Tactical HUD 1 Map Filters NONE Filters NONE Steam 1 RUN: 43ebcc21-f820-4238-b440-721e56a4e358